bitfinex/quotes_SOLUSD_20250416
["timestamp","ask_amount","ask_price","bid_price","bid_amount"]
[1744829509060,106.2,127.83,127.79,61.63534465]
[1744829509273,114.02297368,127.83,127.79,53.81012426]
[1744829509560,53.81012426,127.82,127.78,7.82567296]
[1744829509766,53.81012426,127.8,127.75,53.81012426]
[1744829510149,53.81012426,127.8,127.76,53.81012426]
[1744829510556,53.81012426,127.82,127.77,53.81012426]
[1744829511066,167.83309794,127.83,127.78,53.81012426]
[1744829511284,82.8,127.88,127.81,53.81012426]
[1744829511575,53.81012426,127.86,127.82,53.81012426]
[1744829511741,53.81012426,127.86,127.81,53.81012426]
[1744829511948,53.81012426,127.87,127.82,53.81012426]
[1744829512955,61.63065536,127.87,127.82,61.63315047]
[1744829513267,61.63065536,127.87,127.82,7.82302621]
[1744829513572,61.63065536,127.87,127.82,61.63315047]
[1744829513759,7.8205311,127.87,127.83,53.81012426]
[1744829514255,82.8,127.88,127.84,53.81012426]
[1744829514464,90.61983737,127.88,127.84,53.81012426]
[1744829514664,53.81012426,127.86,127.81,53.81012426]
[1744829514875,72.45977312,127.87,127.82,53.81012426]
[1744829515179,82.8,127.88,127.84,53.81012426]
[1744829515349,23.4,127.89,127.87,53.81012426]
[1744829515548,23.4,127.89,127.86,53.81012426]
[1744829515752,85.02936792,127.89,127.85,53.81012426]
[1744829516153,23.4,127.89,127.86,53.81012426]
[1744829516358,23.4,127.89,127.87,61.63056689]
[1744829516577,31.21929199,127.89,127.83,7.82288977]
[1744829516773,23.4,127.89,127.85,53.81012426]
[1744829516980,23.4,127.89,127.86,53.81012426]
[1744829517550,23.4,127.89,127.85,53.81012426]
[1744829517953,31.21931593,127.89,127.85,53.81012426]
[1744829518550,23.4,127.89,127.85,61.63170679]
[1744829518756,23.4,127.89,127.86,53.81012426]
[1744829520083,23.4,127.89,127.87,53.81012426]
[1744829520556,23.4,127.89,127.87,61.63046467]
[1744829520758,23.4,127.89,127.87,53.81012426]
[1744829521060,23.4,127.89,127.86,61.63092139]
[1744829521255,23.4,127.89,127.87,53.81012426]
[1744829521457,304.20332426,127.93,127.88,53.81012426]
[1744829521653,244.0,127.93,127.9,53.81012426]
[1744829521885,251.81679894,127.93,127.89,53.81012426]
[1744829522998,107.6771,127.94,127.9,53.81012426]
[1744829523168,23.32,127.94,127.93,53.81012426]
[1744829523566,23.32,127.94,127.91,53.81012426]
[1744829523979,0.03,127.95,127.93,53.81012426]
[1744829524182,0.03,127.95,127.94,53.81012426]
[1744829524887,0.03,127.95,127.94,61.62628808]
[1744829525389,0.03,127.95,127.92,73.35286505]
[1744829525390,0.03,127.95,127.92,7.81689572]
[1744829525576,0.03,127.95,127.92,61.62701998]
[1744829525778,0.03,127.95,127.9,53.81012426]
[1744829525779,53.84012426,127.95,127.9,53.81012426]
[1744829526292,53.84012426,127.95,127.91,53.81012426]
[1744829526490,0.03,127.95,127.92,53.81012426]
[1744829526807,0.03,127.95,127.94,61.62628808]
[1744829526988,0.03,127.95,127.94,53.81012426]
[1744829527176,0.03,127.95,127.94,61.62628808]
[1744829527489,0.03,127.95,127.94,53.81012426]
[1744829527685,0.03,127.95,127.93,53.81012426]
[1744829527892,0.03,127.95,127.92,61.62720424]
[1744829528072,0.03,127.95,127.93,53.81012426]
[1744829528589,0.03,127.95,127.92,53.81012426]
[1744829528780,53.84012426,127.95,127.88,7.81983109]
[1744829529091,0.03,127.95,127.91,53.81012426]
[1744829529480,0.03,127.95,127.92,53.81012426]
[1744829529792,0.03,127.95,127.94,53.81012426]
[1744829531271,0.03,127.95,127.94,61.62628808]
[1744829531589,0.03,127.95,127.94,80.41809851]
[1744829531794,2.8270687,127.96,127.95,7.07978471]
[1744829531995,2.8270687,127.96,127.95,60.60558583]
[1744829532200,200.0,128.0,127.96,0.28432314]
[1744829532381,200.0,128.0,127.99,72.88625783]
[1744829532690,200.0,128.0,127.98,53.81012426]
[1744829532997,200.0,128.0,127.99,53.81012426]
[1744829533587,160.53502633,128.0,127.99,98.88625783]
[1744829533780,0.03,128.01,128.0,44.64964886]
[1744829533976,0.03,128.01,128.0,98.45977312]
[1744829534176,0.03,128.01,128.0,79.81012426]
[1744829534892,0.03,128.01,128.0,106.69875783]
[1744829535192,1e-08,128.02,128.01,0.42648471]
[1744829535397,1e-08,128.02,128.01,54.23660897]
[1744829535780,1e-08,128.02,128.01,108.04673323]
[1744829536188,1e-08,128.02,128.01,126.69638209]
[1744829536993,1e-08,128.02,128.01,134.50827178]
[1744829537179,1e-08,128.02,128.01,80.69814752]
[1744829537375,1e-08,128.02,128.01,62.04849866]
[1744829537582,1e-08,128.02,128.01,88.04849866]
[1744829537785,1e-08,128.02,128.01,106.41382438]
[1744829537991,1e-08,128.02,128.01,160.50827178]
[1744829538491,1e-08,128.02,128.01,106.55598595]
[1744829538884,1e-08,128.02,128.01,106.69814752]
[1744829539399,1e-08,128.02,128.01,160.50827178]
[1744829539707,1e-08,128.02,128.01,134.50827178]
[1744829540216,0.03,128.08,128.07,53.81012426]
[1744829541109,0.03,128.08,128.07,106.6944877]
[1744829541412,0.03,128.08,128.04,7.81005935]
[1744829541592,0.03,128.08,128.04,61.62018361]
[1744829541817,0.03,128.08,128.06,53.81012426]
[1744829542212,0.03,128.08,128.07,53.81012426]
[1744829542380,0.03,128.08,128.07,54.23660897]
[1744829543002,0.03,128.08,128.07,62.04483884]
[1744829544615,0.03,128.08,128.07,80.6944877]
[1744829544818,2.8270687,128.22,128.11,26.0]
[1744829544987,53.81012426,128.16,128.08,27.06683357]
[1744829545186,35.08095534,128.15,128.11,35.08095534]
[1744829545400,7.7346,128.17,128.12,35.08095534]
[1744829545603,35.08095534,128.15,128.1,35.08095534]
[1744829545802,35.08095534,128.15,128.11,35.08095534]
[1744829546211,35.08095534,128.16,128.11,35.08095534]
[1744829546508,1.5494,128.17,128.14,35.08095534]
[1744829546822,36.63035534,128.17,128.13,35.08095534]
[1744829547015,36.63035534,128.17,128.12,7.80481216]
[1744829547210,1.5494,128.17,128.12,7.80481216]
[1744829547515,9.35156702,128.17,128.13,35.08095534]
[1744829547811,9.35156702,128.17,128.08,26.0]
[1744829547812,35.08095534,128.14,128.08,26.0]
[1744829548002,35.08095534,128.14,128.1,35.08095534]
[1744829548204,23.28,128.16,128.12,35.08095534]
[1744829548725,23.28,128.16,128.13,35.08095534]
[1744829548918,23.28,128.16,128.09,27.32453742]
[1744829548919,58.36095534,128.16,128.11,35.08095534]
[1744829549111,35.08095534,128.15,128.1,35.08095534]
[1744829549308,6.1852,128.2,128.14,35.08095534]
[1744829549500,1.6151,128.21,128.18,35.08095534]
[1744829549703,26.1070687,128.22,128.18,35.08095534]
[1744829549906,35.08095534,128.21,128.12,33.8397]
[1744829550516,33.90621492,128.22,128.17,35.08095534]
[1744829550818,35.08095534,128.19,128.13,7.80457348]
[1744829551123,35.08095534,128.19,128.15,35.08095534]
[1744829551308,35.08095534,128.16,128.08,7.8377]
[1744829551493,35.08095534,128.13,128.09,42.88796603]
[1744829551693,35.08095534,128.13,128.06,19.52178562]
[1744829552015,35.08095534,128.1,128.05,7.80909706]
[1744829552206,18.933972,128.15,128.05,7.80909706]
[1744829552207,35.08095534,128.12,128.07,35.08095534]
[1744829552413,35.08095534,128.09,128.05,42.8900524]
[1744829552614,0.42648471,128.14,128.06,35.08095534]
[1744829552797,35.08095534,128.11,128.06,42.88974992]
[1744829553320,7.80457348,128.13,128.07,35.08095534]
[1744829553536,35.08095534,128.12,128.07,35.08095534]
[1744829553701,35.08095534,128.1,128.06,35.08095534]
[1744829554025,35.08095534,128.1,128.05,42.89016364]
[1744829554797,27.31600718,128.13,128.05,42.89016364]
[1744829554798,42.88682697,128.11,128.06,35.08095534]
[1744829555027,7.80396441,128.14,128.08,35.08095534]
[1744829555230,35.08095534,128.11,128.05,7.8092083]
[1744829555524,35.08095534,128.11,128.07,35.08095534]
[1744829555725,35.08095534,128.12,128.07,35.08095534]
[1744829556027,35.08095534,128.13,128.08,35.08095534]
[1744829556522,35.08095534,128.11,128.05,27.33283188]
[1744829556719,26.45330098,128.15,128.05,7.8092083]
[1744829556720,35.08095534,128.09,128.05,7.8092083]
[1744829557028,35.08095534,128.06,128.0,1.6077]
[1744829557228,35.08095534,128.06,128.01,42.89284503]
[1744829557415,35.08095534,128.05,128.01,7.81188969]
[1744829557624,35.08095534,128.05,128.01,42.89284503]
[1744829558021,35.08095534,128.06,128.02,35.08095534]
[1744829558408,35.08095534,128.06,128.01,42.89284503]
[1744829558609,35.08095534,128.06,128.02,35.08095534]
[1744829558933,35.08095534,128.06,128.02,42.89184143]
[1744829559130,18.64964886,128.09,128.02,42.89184143]
[1744829559131,7.80711479,128.09,128.02,42.89184143]
[1744829559427,35.08095534,128.07,128.03,35.08095534]
[1744829559917,31.02664934,128.1,128.04,35.08095534]
[1744829560124,35.08095534,128.09,128.05,35.08095534]
[1744829560317,35.08095534,128.08,128.03,35.08095534]
[1744829560516,35.08095534,128.08,128.04,35.08095534]
[1744829560722,35.08095534,128.09,128.02,7.81088609]
[1744829560926,35.08095534,128.08,128.04,42.89082937]
[1744829561107,23.22,128.1,128.05,35.08095534]
[1744829561312,274.3917,128.16,128.09,35.08095534]
[1744829561619,266.72,128.16,128.13,35.08095534]
[1744829561816,23.22,128.16,128.14,35.08095534]
[1744829562409,23.22,128.16,128.1,35.36527848]
[1744829562622,37.90802404,128.22,128.1,35.36527848]
[1744829562623,66.10079195,128.21,128.15,35.08095534]
[1744829562821,66.10079195,128.21,128.11,26.0]
[1744829562822,35.08095534,128.19,128.11,26.0]
[1744829563026,23.22,128.21,128.15,35.08095534]
[1744829563225,76.37862077,128.21,128.16,53.15862077]
[1744829563537,53.15862077,128.2,128.15,53.15862077]
[1744829563728,84.17853586,128.21,128.16,53.15862077]
[1744829564038,60.9591466,128.2,128.15,53.15862077]
[1744829564241,60.9591466,128.2,128.16,53.15862077]
[1744829564533,60.9591466,128.2,128.15,53.15862077]
[1744829565328,60.9591466,128.2,128.14,53.15862077]
[1744829565329,53.15862077,128.19,128.14,53.15862077]
[1744829565833,53.15862077,128.19,128.15,53.15862077]
[1744829566015,7.80052583,128.2,128.15,53.15862077]
[1744829566217,53.15862077,128.19,128.15,53.15862077]
[1744829566426,53.15862077,128.18,128.11,7.80579189]
[1744829566911,53.15862077,128.15,128.11,7.80579189]
[1744829567107,53.15862077,128.12,128.06,6.087]
[1744829567327,53.15862077,128.11,128.07,37.80822987]
[1744829567614,53.15862077,128.12,128.08,53.15862077]
[1744829568117,53.15862077,128.14,128.09,53.15862077]
[1744829568438,53.15862077,128.11,128.06,7.8088396]
[1744829568741,53.15862077,128.11,128.06,60.96746037]
[1744829568915,53.15862077,128.12,128.07,53.15862077]
[1744829569239,53.15862077,128.11,128.07,53.15862077]
[1744829569427,53.15862077,128.11,128.06,60.96746037]
[1744829569626,7.80572012,128.12,128.07,53.15862077]
[1744829569826,53.15862077,128.11,128.07,53.15862077]
[1744829570535,60.96330591,128.13,128.08,53.15862077]
[1744829570745,60.962871,128.14,128.09,53.15862077]
[1744829571039,84.16223971,128.15,128.1,53.15862077]
[1744829571335,31.00361894,128.15,128.1,53.15862077]
[1744829571508,84.16223971,128.15,128.1,53.15862077]
[1744829571942,53.15862077,128.14,128.09,60.96544912]
[1744829572253,53.15862077,128.11,128.06,60.96746037]
[1744829572424,53.15862077,128.11,128.06,7.8088396]
[1744829572625,53.15862077,128.11,128.06,60.96746037]
[1744829573145,60.96454481,128.11,128.06,60.96746037]
[1744829573440,60.96454481,128.11,128.07,53.15862077]
[1744829574043,60.96406198,128.12,128.07,53.15862077]
[1744829574746,53.15862077,128.11,128.07,53.15862077]
[1744829574928,53.15862077,128.11,128.06,7.8088396]
[1744829574929,53.15862077,128.1,128.06,53.15862077]
[1744829575250,53.15862077,128.09,128.04,7.81005935]
[1744829575445,53.15862077,128.09,128.03,60.96903516]
[1744829575446,53.15862077,128.08,128.03,60.96903516]
[1744829575620,23.2,128.09,128.06,53.15862077]
[1744829575940,23.2,128.09,128.08,53.15862077]
[1744829576961,243.5,128.14,128.08,53.15862077]
[1744829576962,266.7,128.14,128.08,53.15862077]
[1744829577243,327.66269044,128.14,128.09,60.96552234]
[1744829577451,53.15862077,128.12,128.08,7.80731501]
[1744829577618,53.15862077,128.1,128.05,53.15862077]
[1744829577819,312.66362956,128.14,128.08,53.15862077]
[1744829577820,274.50406967,128.14,128.08,53.15862077]
[1744829578150,53.15862077,128.13,128.08,53.15862077]
[1744829578319,53.15862077,128.12,128.07,53.15862077]
[1744829578520,53.15862077,128.11,128.07,53.15862077]
[1744829578717,26.0,128.07,128.0,0.063]
[1744829578917,50.62,128.06,128.0,0.063]
[1744829579147,26.0,128.03,128.0,0.063]
[1744829579450,19.07613357,128.05,128.0,0.063]
[1744829579752,12.0867158,128.05,128.0,0.063]
[1744829579934,53.15862077,128.03,128.0,0.063]
[1744829580128,7.80944943,128.05,128.0,0.063]
[1744829580129,79.15862077,128.04,128.0,0.063]
[1744829580331,53.15862077,128.01,128.0,0.063]
[1744829580632,135.95862077,128.03,128.0,0.063]
[1744829580821,135.45862077,128.03,128.0,0.063]
[1744829581219,82.3,128.03,128.0,0.063]
[1744829581448,53.15862077,128.02,128.0,0.063]
[1744829581628,82.3,128.03,128.0,0.063]
[1744829581834,135.45862077,128.03,128.0,0.063]
[1744829582349,82.3,128.03,128.0,0.063]
[1744829582559,143.26939296,128.03,128.0,0.063]
[1744829582861,53.15862077,128.01,128.0,0.063]
[1744829583167,35.15631961,128.01,128.0,0.063]
[1744829583840,42.9682093,128.01,128.0,0.063]
[1744829584057,61.61785816,128.01,128.0,0.063]
[1744829584229,26.0,127.98,127.95,0.063]
[1744829584438,107.44,128.0,127.96,35.15631961]
[1744829584736,59.79631961,128.0,127.95,0.063]
[1744829584926,35.15631961,127.98,127.95,0.063]
[1744829585754,42.97047075,127.98,127.95,0.063]
[1744829586461,67.60940716,128.0,127.95,35.21931961]
[1744829586633,35.15631961,127.99,127.95,0.063]
[1744829587028,35.15631961,127.98,127.95,0.063]
[1744829587430,35.15631961,127.99,127.95,0.063]
[1744829587633,42.96983995,127.99,127.95,0.063]
[1744829587950,35.15631961,127.97,127.95,0.063]
[1744829588128,82.8,127.98,127.95,0.063]
[1744829588331,35.15631961,127.98,127.95,0.063]
[1744829589162,35.15631961,127.97,127.95,0.063]
[1744829589759,42.97085987,127.97,127.95,0.063]
[1744829590876,35.15631961,127.96,127.95,0.063]
[1744829591041,7.81454026,127.97,127.95,0.063]
[1744829591372,35.15631961,127.96,127.95,0.063]
[1744829591587,44.64964886,127.94,127.88,0.063]
[1744829591755,35.15631961,127.9,127.88,0.063]
[1744829591956,42.97467878,127.91,127.88,0.063]
[1744829592164,7.81755719,127.92,127.88,0.063]
[1744829592361,35.15631961,127.91,127.88,0.063]
[1744829592861,35.15631961,127.9,127.88,0.063]
[1744829593375,35.15631961,127.91,127.88,0.063]
[1744829593540,90.61677664,127.93,127.88,35.21931961]
[1744829593744,67.61268507,127.94,127.89,35.15631961]
[1744829593970,90.61451348,127.97,127.93,35.15631961]
[1744829594175,7.81378105,127.98,127.94,35.15631961]
[1744829594390,32.47336321,127.99,127.95,35.15631961]
[1744829594559,67.62968282,127.99,127.95,35.15631961]
[1744829594757,67.62968282,127.99,127.94,35.15631961]
[1744829594959,35.15631961,127.98,127.93,35.15631961]
[1744829595163,35.15631961,127.97,127.89,35.36961964]
[1744829595371,35.15631961,127.97,127.92,35.15631961]
[1744829595672,35.15631961,127.94,127.88,0.063]
[1744829595849,7.81677479,127.93,127.88,0.063]
[1744829596163,82.8,127.95,127.92,35.15631961]
[1744829596478,90.61427596,127.98,127.94,35.15631961]
[1744829596775,90.61427596,127.98,127.95,35.15631961]
[1744829596953,125.77059557,127.98,127.93,35.15631961]
[1744829597456,90.61427596,127.98,127.93,35.15631961]
[1744829597659,35.15631961,127.97,127.93,35.15631961]
[1744829597874,35.15631961,127.96,127.92,35.15631961]
[1744829598180,42.97110075,127.97,127.92,35.15631961]
[1744829598474,82.8,127.98,127.94,35.15631961]
[1744829598774,117.95631961,127.98,127.93,35.15631961]
[1744829599461,82.8,127.98,127.93,35.15631961]
[1744829599676,82.8,127.98,127.94,35.15631961]
[1744829599974,35.15631961,127.97,127.93,35.15631961]
[1744829600278,82.8,127.98,127.95,35.15631961]
[1744829600576,59.81631961,127.99,127.95,35.15631961]
[1744829600778,59.81631961,127.99,127.96,35.15631961]
[1744829600779,24.66,127.99,127.96,35.15631961]
[1744829601078,32.47314586,127.99,127.95,35.15631961]
[1744829601648,35.15631961,127.96,127.91,7.81761034]
[1744829601861,35.15631961,127.92,127.88,0.063]
[1744829602153,35.15631961,127.93,127.88,35.21931961]
[1744829602371,82.8,127.95,127.91,35.15631961]
[1744829602756,35.15631961,127.94,127.88,0.063]
[1744829603062,35.15631961,127.92,127.88,35.21931961]
[1744829603257,35.15631961,127.94,127.89,35.15631961]
[1744829603559,90.61556531,127.95,127.88,35.21931961]
[1744829603560,35.15631961,127.93,127.88,35.21931961]
[1744829603961,82.8,127.95,127.89,35.15631961]
[1744829604274,35.15631961,127.94,127.89,35.15631961]
[1744829604678,35.15631961,127.93,127.89,35.15631961]
[1744829605184,7.81679795,127.93,127.89,35.15631961]
[1744829605367,42.97311756,127.93,127.88,43.03898441]
[1744829606078,7.81679795,127.93,127.89,35.15631961]
[1744829606283,42.97266457,127.94,127.89,35.15631961]
[1744829606491,82.8,127.95,127.9,35.15631961]
[1744829606664,1.03,128.03,127.94,35.15631961]
[1744829606665,82.8,128.0,127.94,35.15631961]
[1744829606866,90.61151491,128.02,127.98,35.15631961]
[1744829607067,125.76783452,128.02,127.98,35.15631961]
[1744829607276,125.76783452,128.02,127.97,35.15631961]
[1744829607476,35.15631961,128.01,127.97,35.15631961]
[1744829607782,125.76783452,128.02,127.98,35.15631961]
[1744829608794,90.61151491,128.02,127.98,35.15631961]
[1744829609157,82.8,128.02,127.99,35.15631961]
[1744829610080,117.95631961,128.01,127.94,32.1402]
[1744829610260,82.8,128.0,127.96,35.15631961]
[1744829610459,82.8,128.0,127.97,35.15631961]
[1744829611589,82.8,128.0,127.97,42.97063834]
[1744829611777,82.8,128.0,127.99,35.15631961]
[1744829611966,82.8,128.0,127.98,35.15631961]
[1744829612167,0.03,128.03,127.99,35.15631961]
[1744829612687,0.03,128.03,128.01,35.15631961]
[1744829613774,0.03,128.03,128.02,35.15631961]
[1744829615188,0.03,128.03,128.01,35.15631961]
[1744829615689,0.03,128.03,128.01,42.9681717]
[1744829617080,0.03,128.03,128.01,35.15631961]
[1744829617271,0.03,128.03,128.0,35.15631961]
[1744829617874,35.18631961,128.03,127.98,35.15631961]
[1744829618075,35.15631961,128.01,127.95,7.81555295]
[1744829618282,35.15631961,128.0,127.95,42.97187256]
[1744829619181,117.95631961,127.99,127.94,41.29651961]
[1744829619369,35.15631961,127.97,127.9,14.43030828]
[1744829619564,35.15631961,127.97,127.93,35.15631961]
[1744829619792,82.8,127.99,127.93,35.15631961]
[1744829619793,35.15631961,127.98,127.93,35.15631961]
[1744829620473,117.95631961,127.99,127.94,35.15631961]
[1744829620687,125.76968731,127.99,127.94,35.15631961]
[1744829620887,35.15631961,127.97,127.93,35.15631961]
[1744829621083,35.15631961,127.97,127.92,35.15631961]
[1744829621388,117.95631961,127.98,127.93,35.15631961]
[1744829622300,116.61285331,128.0,127.95,35.15631961]
[1744829622605,82.8,128.0,127.97,35.15631961]
[1744829622894,35.15631961,127.99,127.92,7.81738586]
[1744829623067,117.95631961,127.99,127.94,35.15631961]
[1744829623268,35.15631961,127.97,127.92,7.81738586]
[1744829623476,35.15631961,127.96,127.91,7.81799702]
[1744829623675,35.15631961,127.96,127.91,42.97431663]
[1744829623886,35.15631961,127.96,127.92,35.15631961]
[1744829624695,42.9721218,127.95,127.9,42.97480803]
[1744829625287,35.15631961,127.94,127.9,35.15631961]
[1744829625487,42.9721218,127.95,127.9,35.15631961]
[1744829625990,42.9721218,127.95,127.88,26.063]
[1744829625991,35.15631961,127.93,127.88,7.88264445]
[1744829626303,35.15631961,127.93,127.89,35.15631961]
[1744829626685,35.15631961,127.93,127.88,35.21931961]
[1744829626988,125.77269348,127.94,127.89,35.15631961]
[1744829627184,82.8,127.96,127.93,35.15631961]
[1744829627387,66.8103098,127.98,127.93,35.15631961]
[1744829627799,35.15631961,127.97,127.93,35.15631961]
[1744829628102,35.15631961,127.96,127.91,35.15631961]
[1744829628406,117.95631961,127.96,127.91,35.15631961]
[1744829628575,35.15631961,127.94,127.9,35.15631961]
[1744829628783,7.81616382,127.94,127.9,35.15631961]
[1744829628997,42.97248343,127.94,127.9,35.15631961]
[1744829629196,35.15631961,127.93,127.88,35.21931961]
[1744829629378,35.15631961,127.93,127.88,43.03905819]
[1744829630501,42.97248343,127.94,127.89,35.15631961]
[1744829630804,7.81616382,127.94,127.9,35.15631961]
[1744829631492,7.81616382,127.94,127.89,35.15631961]
[1744829631690,42.97248343,127.94,127.89,35.15631961]
[1744829632210,7.81616382,127.94,127.9,35.15631961]
[1744829632402,151.77164462,127.96,127.91,35.15631961]
[1744829632597,82.8,127.95,127.92,35.15631961]
[1744829633609,23.84,127.97,127.94,35.15631961]
[1744829633787,23.84,127.97,127.95,35.15631961]
[1744829634901,23.84,127.97,127.95,42.97186442]
[1744829635697,23.84,127.97,127.92,35.15631961]
[1744829636010,23.84,127.97,127.95,35.15631961]
[1744829638008,23.84,127.97,127.95,42.97186169]
[1744829638216,82.8,128.01,127.96,35.15631961]
[1744829638398,82.8,128.01,127.98,35.15631961]
[1744829638709,82.8,128.01,127.98,42.9699905]
[1744829638911,0.03,128.02,128.0,35.15631961]
[1744829639101,0.03,128.02,127.98,42.9699905]
[1744829639430,0.03,128.02,128.0,35.15631961]
[1744829639917,0.03,128.02,128.01,35.15631961]
[1744829640087,0.03,128.02,128.0,35.15631961]
[1744829641299,0.03,128.02,128.0,42.9686023]
[1744829641500,0.03,128.02,128.01,35.15631961]
[1744829642911,1e-08,128.02,128.01,88.47605318]
[1744829643119,1e-08,128.02,128.01,96.28794287]
[1744829643813,1e-08,128.02,128.01,102.55407136]
[1744829644120,1e-08,128.02,128.01,96.28794287]
[1744829644318,1e-08,128.03,128.02,18.64964886]
[1744829644487,0.03,128.09,128.04,26.0]
[1744829644690,0.03,128.09,128.08,35.15631961]
[1744829645097,0.03,128.1,128.09,1.97938471]
[1744829645296,0.03,128.1,128.09,106.09903462]
[1744829646421,0.03,128.1,128.09,70.5162303]
[1744829646620,0.03,128.1,128.09,42.9633303]
[1744829648418,0.03,128.1,128.09,35.15631961]
[1744829648788,0.03,128.1,128.09,42.9633303]
[1744829651813,0.03,128.1,128.09,7.80701069]
[1744829652014,0.03,128.1,128.04,41.20511961]
[1744829652206,35.15631961,128.07,128.02,7.81127948]
[1744829652516,117.98631961,128.1,128.02,42.96759909]
[1744829652517,35.15631961,128.06,128.02,42.96759909]
[1744829652820,108.8,128.09,127.98,42.91421961]
[1744829653033,35.15631961,128.06,128.02,35.15631961]
[1744829653710,82.8,128.08,128.03,35.15631961]
[1744829653918,35.15631961,128.07,128.02,35.15631961]
[1744829655310,35.15631961,128.05,128.0,42.96881961]
[1744829655707,35.15631961,128.05,128.01,35.15631961]
[1744829655923,35.15631961,128.06,128.02,35.15631961]
[1744829656228,35.15631961,128.03,127.99,35.15631961]
[1744829656416,35.15631961,128.03,127.98,35.15631961]
[1744829656732,35.15631961,128.04,127.99,35.15631961]
[1744829657434,82.8,128.05,128.01,35.15631961]
[1744829657608,82.8,128.05,128.02,35.15631961]
[1744829658205,82.8,128.05,128.01,7.81165554]
[1744829658411,42.96595108,128.05,128.0,35.15631961]
[1744829658617,35.15631961,128.06,128.02,35.15631961]
[1744829658932,42.96518024,128.06,128.01,35.15631961]
[1744829659717,35.15631961,128.05,128.0,35.15631961]
[1744829660315,35.15631961,128.05,128.0,42.96872002]
[1744829660509,35.15631961,128.05,128.01,35.15631961]
[1744829660705,35.15631961,128.05,128.0,35.15631961]
[1744829660911,35.15631961,128.04,128.0,35.15631961]
[1744829661226,7.80886063,128.06,128.0,35.15631961]
[1744829661434,35.15631961,128.05,128.01,35.15631961]
[1744829661827,42.96600405,128.05,128.0,35.15631961]
[1744829662134,35.15631961,128.04,127.99,35.15631961]
[1744829662330,35.15631961,128.0,127.95,6.3182]
[1744829662628,35.15631961,127.99,127.95,0.063]
[1744829663010,35.15631961,127.99,127.95,35.21931961]
[1744829663330,117.95631961,128.02,127.98,35.15631961]
[1744829663712,117.95631961,128.02,127.97,35.15631961]
[1744829664030,35.15631961,128.01,127.96,35.15631961]
[1744829664331,82.8,128.02,127.97,35.15631961]
[1744829664512,82.8,128.02,127.98,35.15631961]
[1744829665132,105.96,128.04,127.99,35.15631961]
[1744829665309,105.96,128.04,128.01,35.15631961]
[1744829665500,141.11631961,128.04,127.99,35.15631961]
[1744829666132,35.15631961,128.03,127.98,35.15631961]
[1744829666333,35.15631961,128.03,127.96,7.81474553]
[1744829666334,35.15631961,128.02,127.96,7.81474553]
[1744829666511,35.15631961,128.02,127.97,35.15631961]
[1744829666711,18.64964886,128.03,127.99,35.15631961]
[1744829666712,35.15631961,128.03,127.99,35.15631961]
[1744829666919,35.15631961,128.03,127.98,35.15631961]
[1744829667119,35.15631961,128.03,127.99,35.15631961]
[1744829668030,42.9673348,128.03,127.98,42.97000861]
[1744829668832,105.96,128.04,127.98,42.97000861]
[1744829669027,148.92652045,128.04,128.0,35.15631961]
[1744829669227,35.15631961,128.02,127.98,7.813689]
[1744829669440,35.15631961,128.02,127.98,42.97000861]
[1744829669643,35.15631961,128.03,127.98,42.97000861]
[1744829670236,35.15631961,128.03,127.99,35.15631961]
[1744829671612,105.96,128.04,128.0,35.15631961]
[1744829672226,105.96,128.04,128.01,35.15631961]
[1744829672736,105.96,128.04,128.02,35.15631961]
[1744829673740,105.96,128.04,128.01,42.96820055]
[1744829674112,105.96,128.04,128.02,35.15631961]
[1744829674639,82.8,128.07,128.03,35.15631961]
[1744829674942,125.76372399,128.09,128.05,35.15631961]
[1744829675320,90.60740438,128.09,128.05,35.15631961]
[1744829675516,23.19,128.1,128.07,35.15631961]
[1744829676322,23.19,128.1,128.06,35.15631961]
[1744829676323,66.15293936,128.1,128.06,35.15631961]
[1744829676640,117.95631961,128.09,128.04,35.15631961]
[1744829676963,117.95631961,128.09,128.05,35.15631961]
[1744829677245,82.8,128.09,128.06,35.15631961]
[1744829677919,23.19,128.1,128.06,35.15631961]
[1744829678249,0.03,128.1,128.07,35.15631961]
[1744829678416,0.03,128.1,128.08,35.15631961]
[1744829678615,0.03,128.1,128.08,42.96378437]
[1744829679031,0.03,128.1,128.08,35.15631961]
[1744829679742,0.03,128.1,128.08,42.96377334]
[1744829680843,0.03,128.1,128.09,35.15631961]
[1744829682139,0.03,128.1,128.05,26.0]